Cogmind - Beta 14 @@@ ROGUE MODE // 2025.03.06 @ 16:09:48 Player: mix Result: Destroyed by H-61 Shepherd with Heavy Assault Cannon Performance ------------- Evolutions (2) 1000 Regions Visited (9) 1800 Robots Destroyed (146) 730 Value Destroyed (4292) 4292 Prototype IDs (30) 600 Alien Tech Used (0) 0 Bonus (1132) 1132 TOTAL SCORE: 9554 Bonus ------- High Alert Combat Kills 644 Entered Garrisons 200 Aligned with FarCom 300 Friendly Fire -12 Cogmind --------- Core Integrity 0/550 Matter 23/300 Energy 90/100 System Corruption 0% Temperature Cool (18) Movement Core (350) Ox6 Location -8/Materials Parts ------- > --- POWER (1) -------- (None) > --- PROPULSION (2) --- (None) > --- UTILITY (4) ------ Large Storage Unit > --- WEAPON (4) ------- (None) > --- INVENTORY (15) --- Light Nuclear Core Particle Gun Improved Medium Laser Enhanced Autogun Enhanced Autogun Enhanced Autogun Enhanced Autogun Missile Launcher Plasma Cutter Plasma Flamer Peak State ------------ > --- POWER ------------ Cooled Ion Engine > --- PROPULSION ------- Improved Treads Improved Treads > --- UTILITY ---------- Large Storage Unit Hardened Medium Armor Plating Hardened Medium Armor Plating Hardened Medium Armor Plating > --- WEAPON ----------- XL Autogun Array > --- INVENTORY -------- Improved Ion Engine Light Nuclear Core Light Treads Improved Heat Sink Improved Medium Laser Improved Medium Laser Improved Medium Laser Enhanced Autogun Enhanced Autogun Enhanced Autogun Enhanced Autogun Mini Grenade Launcher Plasma Cutter Plasma Flamer [Rating: 57] Favorites ----------- Power Cooled Ion Engine Engine Cooled Ion Engine Power Core Light Nuclear Core Propulsion Improved Treads Treads Improved Treads Utility Hardened Medium Armor Plating Device Improved Heat Sink Storage Large Storage Unit Protection Hardened Medium Armor Plating Weapon Enhanced Autogun Energy Gun Improved Medium Laser Energy Cannon Beam Cannon Ballistic Gun Enhanced Autogun Launcher Mini Grenade Launcher Special Weapon Plasma Cutter Build | -11 -10 -10 -9 -9 -9 -8 -8 -8 -8 ------- Run | Yrd Mat Min Mat Min Exi Min Mat Gar Mat Slots Evolved 4 | . . . 2 . . . 2 . . Power . | . . . . . . . . . . Propulsion . | . . . . . . . . . . Utility 2 | . . . 2 . . . . . . Weapon 2 | . . . . . . . 2 . . Parts Attached 89 | 6 8 . 28 2 3 5 4 22 11 Power 6 | 1 2 . 1 . . . . 2 . Engine 5 | 1 2 . 1 . . . . 1 . Core 1 | . . . . . . . . 1 . Reactor . | . . . . . . . . . . Propulsion 15 | 2 1 . 5 1 . . 3 1 2 Treads 15 | 2 1 . 5 1 . . 3 1 2 Leg . | . . . . . . . . . . Wheel . | . . . . . . . . . . Hover . | . . . . . . . . . . Flight . | . . . . . . . . . . Utility 15 | 1 3 . 7 1 1 . . 1 1 Device 4 | . 1 . 1 . . . . 1 1 Storage 4 | 1 2 . 1 . . . . . . Processor . | . . . . . . . . . . Hackware . | . . . . . . . . . . Protection 7 | . . . 5 1 1 . . . . Artifact . | . . . . . . . . . . Weapon 53 | 2 2 . 15 . 2 5 1 18 8 Energy Gun 19 | 2 1 . 6 . . 1 . 7 2 Energy Cannon 2 | . 1 . 1 . . . . . . Ballistic Gun 18 | . . . 5 . 2 1 1 6 3 Ballistic Cannon . | . . . . . . . . . . Launcher 10 | . . . 2 . . 3 . 2 3 Special Weapon 4 | . . . 1 . . . . 3 . Impact Weapon . | . . . . . . . . . . Slashing Weapon . | . . . . . . . . . . Piercing Weapon . | . . . . . . . . . . Special Melee Weapon . | . . . . . . . . . . Unidentified Prototypes 6 | . . . 5 . . . . . 1 Parts Lost 22 | . . . 6 2 . 1 . 4 9 Power 2 | . . . . . . . . 1 1 Propulsion 8 | . . . 2 1 . 1 . 1 3 Utility 9 | . . . 3 1 . . . 2 3 Weapon 3 | . . . 1 . . . . . 2 Highest Loss Streak 5 | . . . 3 2 . 1 . 3 5 To Critical Strikes . | . . . . . . . . . . Average Slot Usage (%) 85 | . 96 100 98 88 83 94 70 72 68 Engine 10 | . 13 14 11 11 11 11 9 8 8 Treads 19 | . 27 28 21 22 22 17 16 17 14 Device 6 | . 5 14 9 . . . . 7 6 Storage 10 | . 21 14 11 11 11 11 9 9 9 Protection 18 | . . . 21 22 29 33 27 12 5 Energy Gun 6 | . 22 14 4 . . 2 . 9 17 Energy Cannon 1 | . 5 14 2 . . . . . . Ballistic Gun 9 | . . . 14 22 9 10 9 5 3 Launcher 1 | . . . . . . 8 . . 3 Peak Build Rating 57 | 6 10 10 26 26 31 32 57 57 53 Average Rating 30 | 4 8 10 22 25 24 29 56 41 29 On Entrance 21 | . 6 10 10 26 25 31 27 57 25 Naked Turns . | . . . . . . . . . . Heaviest Build 67 | 12 26 24 50 50 58 58 67 67 45 Greatest Support 46 | 40 40 40 46 46 46 46 46 46 46 Greatest Overweight (x) 14 | . . . 1 1 1 2 2 2 14 Average Overweight (x) . | . . . . 1 . 1 1 . . Largest Inventory Capacity 15 | 8 10 10 15 15 15 15 15 15 15 Average Capacity 14 | 6 9 10 13 15 15 15 15 15 15 Most Carried 15 | 4 9 10 15 15 15 15 15 15 14 Average Carried 12 | . 4 9 12 13 14 15 13 12 11 Final Capacity 15 | 8 10 10 15 15 15 15 15 15 15 Final Carried 15 | . 9 10 15 14 15 15 14 14 10 Class Distribution -------------------- 65% | Mutant 21% | Skirmisher 12% | Tank Dominant Class ---------------- Mutant | -10/Materials Mutant | -10/Mines Mutant | -9/Materials Mutant | -9/Mines Mutant | -9/Exiles Mutant | -8/Mines Tank | -8/Materials Skirmisher | -8/Garrison Skirmisher | -8/Materials Resources | -11 -10 -10 -9 -9 -9 -8 -8 -8 -8 ----------- Run | Yrd Mat Min Mat Min Exi Min Mat Gar Mat Matter Collected 3509 | 197 118 39 1045 199 . 386 647 412 466 Remotely . | . . . . . . . . . . Salvage Created 4581 | . 118 90 1775 295 . 409 748 515 631 Parts 308 | . 9 . 105 21 . 40 41 48 44 Haulers Intercepted 10 | . 1 . 6 . . . 1 . 2 Recyclers Shooed 2 | . 1 . 1 . . . . . . Parts Field Recycled . | . . . . . . . . . . Retrieved Matter . | . . . . . . . . . . Parts Self-Destructed . | . . . . . . . . . . Prevented . | . . . . . . . . . . Kills | -11 -10 -10 -9 -9 -9 -8 -8 -8 -8 ------- Run | Yrd Mat Min Mat Min Exi Min Mat Gar Mat Combat Hostiles Destroyed 111 | . . 6 33 6 . 17 7 25 17 Melee 1 | . . . . . . . . 1 . Guns 60 | . . 3 24 6 . 1 7 10 9 Cannons 9 | . . 3 6 . . . . . . AOE 40 | . . . 2 . . 16 . 14 8 Classes Destroyed 15 | . 3 1 6 1 . 2 1 . 1 Worker 6 | . . . 1 1 . 2 . . 2 Builder 6 | . . . . . . 1 2 . 3 Tunneler 6 | . 1 . 2 1 . 1 . . 1 Hauler 10 | . 1 . 6 . . . 1 . 2 Recycler 5 | . . . . 1 . 1 3 . . Mechanic 1 | . . . . . . . 1 . . Watcher 7 | . 1 . 3 . . . 2 . 1 Swarmer 39 | . . . 2 3 . 10 . 19 5 Grunt 48 | . . . 19 3 . 6 4 6 10 Brawler 2 | . . . 2 . . . . . . Duelist 2 | . . . 1 . . . 1 . . Sentry 11 | . . . 9 . . . 2 . . Specialist 1 | . . . . . . . . . 1 Hunter 2 | . . . . . . 1 . . 1 Assembled 6 | . . 6 . . . . . . . Best Kill Streak 9 | . 1 3 6 6 . 4 7 9 7 Combat Bots Only 9 | . . 3 5 3 . 4 4 9 5 Max Kills in Single Turn 4 | . 1 1 2 1 . 4 2 4 3 Gunslinging . | . . . . . . . . . . Exploded 4 | . . . 1 . . 4 . 4 2 Melee 1 | . . . . . . . . 1 . Uniques/NPCs Destroyed . | . . . . . . . . . . Combat | -11 -10 -10 -9 -9 -9 -8 -8 -8 -8 -------- Run | Yrd Mat Min Mat Min Exi Min Mat Gar Mat Hostile Shots Fired 508 | . . 13 170 57 . 27 13 96 132 Missed 133 | . . 4 41 11 . 10 6 26 35 Damage Taken 5701 | . . 246 1887 413 . 359 106 846 1844 Core 956 | . . 24 260 44 . 39 47 97 445 Absorbed by Shields . | . . . . . . . . . . Redirected to Shielding 49 | . . . 49 . . . . . . Regen/Repaired (Parts) 44 | . . . 44 . . . . . . Core Remaining (%) 68 | 100 . 90 . . . 14 . . . Volleys Fired 408 | . 9 15 141 33 . 27 31 99 53 Largest 4 | . 2 2 2 2 . 2 1 4 4 Hottest 207 | . 110 110 160 50 . 81 60 168 207 Shots Fired 700 | . 18 30 267 39 . 42 31 167 106 Gun 588 | . 15 15 220 39 . 27 31 150 91 Cannon 55 | . 3 15 37 . . . . . . Launcher 45 | . . . 4 . . 15 . 11 15 Special 12 | . . . 6 . . . . 6 . Kinetic 340 | . . . 187 39 . 22 31 35 26 Thermal 309 | . 12 30 76 . . 5 . 121 65 Explosive 45 | . . . 4 . . 15 . 11 15 Electromagnetic 6 | . 6 . . . . . . . . Robot Hit Streak 16 | . 3 5 16 9 . 9 9 9 12 Robot Miss Streak 9 | . 3 5 4 9 . 3 8 3 4 Penetration Max . | . . . . . . . . . . Secondary Targets 3 | . . . 2 1 . . . . . Max Gunslinging Chain 1 | . . . 1 1 . . . . . Shots Hit Robots 372 | . 9 12 177 19 . 21 29 32 73 Core Hits 232 | . 3 10 68 11 . 35 21 39 45 Critical Kills . | . . . . . . . . . . Critical Parts Destroyed 2 | . . . 1 . . 1 . . . Critical Strikes 10 | . 1 1 4 . . 1 . 1 2 Burn 8 | . 1 1 3 . . . . 1 2 Destroy 2 | . . . 1 . . 1 . . . Melee Attacks . | . . . . . . . . . . Impact . | . . . . . . . . . . Slashing . | . . . . . . . . . . Piercing . | . . . . . . . . . . Sneak Attacks . | . . . . . . . . . . Combat Hostiles . | . . . . . . . . . . Follow-up Attacks . | . . . . . . . . . . Damage Inflicted 11454 | . 134 201 3290 443 . 1368 1505 1672 2841 Guns 7305 | . 100 97 2433 443 . 233 1505 987 1507 Cannons 611 | . 34 104 473 . . . . . . Explosions 3445 | . . . 300 . . 1135 . 676 1334 Melee . | . . . . . . . . . . Ramming 18 | . . . 9 . . . . 9 . Kinetic 5995 | . . . 2162 443 . 183 1505 885 817 Thermal 1946 | . 84 201 819 . . 50 . 102 690 Explosive 3445 | . . . 300 . . 1135 . 676 1334 Electromagnetic 50 | . 50 . . . . . . . . Impact . | . . . . . . . . . . Slashing . | . . . . . . . . . . Piercing . | . . . . . . . . . . Highest Corruption 17 | . 2 2 17 17 17 17 . . . Average Corruption 12 | . 1 2 7 17 17 17 . . . Corruption Purged . | . . . . . . . . . . Corruption Blocked . | . . . . . . . . . . Effects 144 | . 1 8 29 14 26 66 . . . Message Errors 31 | . . 4 7 2 7 11 . . . Matter Fused 37 | . 1 1 4 2 9 20 . . . Heat Flow Errors 22 | . . 2 5 2 3 10 . . . Energy Discharges 14 | . . . 3 2 2 7 . . . Parts Fused 2 | . . . . . 1 1 . . . Data Loss (minor) 14 | . . . 3 2 3 6 . . . Data Loss (major) 8 | . . . 1 1 1 5 . . . Misfires 7 | . . . 4 1 . 2 . . . Alerts 6 | . . 1 1 2 . 2 . . . Weapon Failures 3 | . . . 1 . . 2 . . . Overload Shots . | . . . . . . . . . . Overflow Damage 84 | . . . . . . 45 . . 39 Projectiles . | . . . . . . . . . . Explosions 84 | . . . . . . 45 . . 39 Melee . | . . . . . . . . . . Knockbacks . | . . . . . . . . . . Impact . | . . . . . . . . . . Kinetic . | . . . . . . . . . . Secondary . | . . . . . . . . . . Self-Inflicted Damage 255 | . . . 28 . . 124 . 27 76 Shots 11 | . . . 2 . . 4 . 1 4 Rammed 4 | . . . 2 . . . . 2 . Targets Rammed 4 | . . . 2 . . . . 2 . Kicked . | . . . . . . . . . . Crushed . | . . . . . . . . . . Highest Temperature 678 | . 90 235 265 261 229 425 305 432 678 Average Temperature 111 | . 34 58 63 106 106 111 108 142 230 Received Heat Transfer 1760 | . . 116 702 78 . 81 63 342 378 Effects 31 | . . . 1 . . 4 2 9 15 Shutdowns 3 | . . . . . . . . 1 2 Energy Bleed 11 | . . . . . . 1 . 4 6 Interference 10 | . . . 1 . . 2 2 2 3 Matter Decay 3 | . . . . . . 1 . . 2 Short Circuit 3 | . . . . . . . . 2 1 Damage (minor) 1 | . . . . . . . . . 1 Siege Activations . | . . . . . . . . . . Robots Corrupted . | . . . . . . . . . . Combat Hostiles . | . . . . . . . . . . Parts Fried . | . . . . . . . . . . Impact Corruptions . | . . . . . . . . . . Robots Melted 1 | . . . 1 . . . . . . Combat Hostiles 1 | . . . 1 . . . . . . Parts Melted 8 | . . . 6 . . . . . 2 Heat Transferred 5561 | . 296 592 2564 . . 111 . 296 1702 Parts Sabotaged . | . . . . . . . . . . Parts Stolen . | . . . . . . . . . . Parts Stripped . | . . . . . . . . . . Power Chain Reactions . | . . . . . . . . . . Alert | -11 -10 -10 -9 -9 -9 -8 -8 -8 -8 ------- Run | Yrd Mat Min Mat Min Exi Min Mat Gar Mat Peak Influence 2046 | . 46 17 626 378 . 240 288 2046 1341 Initial 997 | . . 17 . 243 . . 85 107 997 Average 531 | . 34 13 341 316 . 130 178 964 1177 Maximum Alert Level 5 | . . . 2 1 . 1 1 5 4 Low Security (%) 33 | 100 100 100 37 4 . 55 47 11 . Level 1 18 | . . . 14 95 . 44 52 . . Level 2 16 | . . . 47 . . . . 10 . Level 3 16 | . . . . . . . . 43 33 Level 4 12 | . . . . . . . . 23 66 Level 5 3 | . . . . . . . . 10 . High Security . | . . . . . . . . . . Max Security . | . . . . . . . . . . Squads Dispatched 12 | . . . 5 . . . 1 . 6 Investigation 4 | . . . 4 . . . . . . Extermination . | . . . . . . . . . . Reinforcement 3 | . . . . . . . . . 3 Assault 1 | . . . 1 . . . . . . Garrison 4 | . . . . . . . 1 . 3 Intercept . | . . . . . . . . . . Searches Triggered . | . . . . . . . . . . Construction Impeded 1 | . . . . . . . . . 1 Haulers Reinforced . | . . . . . . . . . . Active Scanning Responses . | . . . . . . . . . . Cargo Convoy Interrupts . | . . . . . . . . . . Stealth | -11 -10 -10 -9 -9 -9 -8 -8 -8 -8 --------- Run | Yrd Mat Min Mat Min Exi Min Mat Gar Mat Distress Signals 6 | . . . 2 . . . 3 . 1 Communications Jammed . | . . . . . . . . . . Distress Signals . | . . . . . . . . . . Times Spotted 143 | . 2 9 53 7 . 12 14 22 24 Peak Tracking Total 9 | . 1 2 6 3 . 3 4 9 6 Tactical Retreats 4 | . . . 2 . . 1 . 1 . Traps | -11 -10 -10 -9 -9 -9 -8 -8 -8 -8 ------- Run | Yrd Mat Min Mat Min Exi Min Mat Gar Mat Traps Triggered 21 | . 3 . 3 . . . . 15 . Indirectly . | . . . . . . . . . . Trap Hack Attempts . | . . . . . . . . . . Triggered . | . . . . . . . . . . Disarmed . | . . . . . . . . . . Reprogrammed . | . . . . . . . . . . Reused . | . . . . . . . . . . Traps Extracted . | . . . . . . . . . . Installed 2 | . . . . . . . . 2 . Triggered . | . . . . . . . . . . Most Traps Carried 4 | . . . . . . . . 4 . Machines | -11 -10 -10 -9 -9 -9 -8 -8 -8 -8 ---------- Run | Yrd Mat Min Mat Min Exi Min Mat Gar Mat Machines Disabled 20 | . . . 7 . . 1 . 9 3 Max in Single Turn 1 | . . . 1 . . 1 . 1 1 Garrison Relay 3 | . . . . . . . . 3 . Machines Repaired . | . . . . . . . . . . Machines Dismantled 5 | . . . . . . . . 5 . Machines Sabotaged . | . . . . . . . . . . Overloaded Fab Kills . | . . . . . . . . . . Hacking | -11 -10 -10 -9 -9 -9 -8 -8 -8 -8 --------- Run | Yrd Mat Min Mat Min Exi Min Mat Gar Mat Machines Accessed 25 | . 3 . 18 . 1 . 1 2 . Terminals 15 | . 1 . 12 . . . . 2 . Fabricators . | . . . . . . . . . . Repair Stations 2 | . . . 2 . . . . . . Recycling Units 4 | . 2 . 2 . . . . . . Scanalyzers 2 | . . . 2 . . . . . . Garrison Access 1 | . . . . . . . 1 . . Total Hacks 55 | . 7 . 42 . 1 . 1 4 . Successful 33 | . 3 . 26 . 1 . 1 2 . Failed 22 | . 4 . 16 . . . . 2 . Catastrophic 2 | . . . . . . . . 2 . Database Lockouts . | . . . . . . . . . . Manual 35 | . 6 . 28 . 1 . . . . Terminals 33 | . 2 . 27 . . . . 4 . Fabricators . | . . . . . . . . . . Repair Stations 5 | . . . 5 . . . . . . Recycling Units 8 | . 5 . 3 . . . . . . Scanalyzers 7 | . . . 7 . . . . . . Garrison Access 1 | . . . . . . . 1 . . Terminal Hacks 6 | . . . 3 . 1 . . 2 . Prototype ID Bank 1 | . . . 1 . . . . . . Branch Access Points 1 | . . . 1 . . . . . . Emergency Access Points 1 | . . . . . . . . 1 . Zone Layout 1 | . . . 1 . . . . . . Patrol Navigation 1 | . . . . . . . . 1 . Derelict Proto ID Bank 1 | . . . . . 1 . . . . Fabricator Hacks . | . . . . . . . . . . Repair Station Hacks 4 | . . . 4 . . . . . . Scan Component 2 | . . . 2 . . . . . . Repair 2 | . . . 2 . . . . . . Recycling Unit Hacks 2 | . 1 . 1 . . . . . . Retrieve Components 2 | . 1 . 1 . . . . . . Scanalyzer 2 | . . . 2 . . . . . . Insert Component 1 | . . . 1 . . . . . . Analyze 1 | . . . 1 . . . . . . Garrison Access Hacks 1 | . . . . . . . 1 . . Unlock Access 1 | . . . . . . . 1 . . Unauthorized Hacks 18 | . 2 . 16 . . . . . . Terminals 14 | . . . 14 . . . . . . Assimilate 2 | . . . 2 . . . . . . Botnet 11 | . . . 11 . . . . . . Operators 1 | . . . 1 . . . . . . Fabricators . | . . . . . . . . . . Repair Stations . | . . . . . . . . . . Recycling Units 4 | . 2 . 2 . . . . . . Reject 4 | . 2 . 2 . . . . . . Scanalyzers . | . . . . . . . . . . Garrison Access . | . . . . . . . . . . Data Cores Recovered . | . . . . . . . . . . Used . | . . . . . . . . . . Hacking Detections 19 | . 2 . 14 . . . 1 2 . Full Trace Events 7 | . . . 5 . . . . 2 . Feedback Events . | . . . . . . . . . . Feedback Blocked . | . . . . . . . . . . Robot Schematics Acquired . | . . . . . . . . . . Robots Built . | . . . . . . . . . . Authchips . | . . . . . . . . . . Time . | . . . . . . . . . . Total Robot Build Rating . | . . . . . . . . . . Part Schematics Acquired 1 | . . . 1 . . . . . . Parts Built . | . . . . . . . . . . Authchips . | . . . . . . . . . . Time . | . . . . . . . . . . Total Part Build Rating . | . . . . . . . . . . Parts Repaired 2 | . . . 2 . . . . . . Time 95 | . . . 95 . . . . . . Parts Recycled . | . . . . . . . . . . Recycled Matter . | . . . . . . . . . . Retrieved Matter . | . . . . . . . . . . Retrieved Components 13 | . 3 . 10 . . . . . . Parts Scanalyzed 1 | . . . 1 . . . . . . Part Schematics Acquired 1 | . . . 1 . . . . . . Parts Damaged 1 | . . . 1 . . . . . . Bothacking | -11 -10 -10 -9 -9 -9 -8 -8 -8 -8 ------------ Run | Yrd Mat Min Mat Min Exi Min Mat Gar Mat Used RIF Installer . | . . . . . . . . . . Robots Hacked . | . . . . . . . . . . Non-combat . | . . . . . . . . . . Combat . | . . . . . . . . . . Robot Hacks Applied . | . . . . . . . . . . Relay Couplers Released 12 | . . . . . . . . 12 . Machine Destruction 12 | . . . . . . . . 12 . Fabnet Peak Effective % . | . . . . . . . . . . Robots Rewired . | . . . . . . . . . . Allies Hacked . | . . . . . . . . . . Hacks Repelled . | . . . . . . . . . . Allies | -11 -10 -10 -9 -9 -9 -8 -8 -8 -8 -------- Run | Yrd Mat Min Mat Min Exi Min Mat Gar Mat Total Allies 4 | . . 3 1 . . . . . . Largest Group 3 | . . 3 1 . . . . . . Highest-Rated Group 40 | . . 40 10 . . . . . . Highest-Rated Ally 16 | . . 16 10 . . . . . . Total Orders . | . . . . . . . . . . Ally Attacks 41 | . . 37 4 . . . . . . Total Damage 347 | . . 325 22 . . . . . . Kills 4 | . . 4 . . . . . . . Allies Corrupted . | . . . . . . . . . . Allies Melted . | . . . . . . . . . . Intel | -11 -10 -10 -9 -9 -9 -8 -8 -8 -8 ------- Run | Yrd Mat Min Mat Min Exi Min Mat Gar Mat Robot Analysis Total . | . . . . . . . . . . Derelict Logs Recovered 2 | . . 2 . . . . . . . Drone Launches . | . . . . . . . . . . Drone Recoveries . | . . . . . . . . . . Exploration | -11 -10 -10 -9 -9 -9 -8 -8 -8 -8 ------------- Run | Yrd Mat Min Mat Min Exi Min Mat Gar Mat Turns Passed 10626 | 60 346 412 2785 417 695 1445 594 3195 677 Spaces Moved 4364 | 39 184 186 1304 150 322 495 197 1232 255 Core 14 | 12 . . . . . . . . 2 Treads 4350 | 27 184 186 1304 150 322 495 197 1232 253 Legs . | . . . . . . . . . . Wheels . | . . . . . . . . . . Hover . | . . . . . . . . . . Flight . | . . . . . . . . . . Fastest Speed 50 | 50 160 160 160 240 160 240 240 160 160 Average Speed 203 | 126 160 160 167 240 214 269 248 215 206 Slowest Speed 750 | 160 160 160 240 240 240 320 320 320 750 Overloaded Moves . | . . . . . . . . . . Propulsion Burnouts . | . . . . . . . . . . Robots Hopped . | . . . . . . . . . . Cave-ins Triggered . | . . . . . . . . . . Exploration Rate (%) 50 | 4 37 41 90 47 61 90 25 87 22 Regions Visited 9 Branch Regions 4 Pre-discovered Areas . | . . . . . . . . . . Known Exits Taken 2 | . . . 1 . . . 1 . . Unknown Exits Taken 6 | 1 1 1 . 1 1 1 . . . Scrap Searched 3 | . . . . 2 . 1 . . . Spaces Dug . | . . . . . . . . . . Terrain Destroyed 313 | . . . 32 . . 156 30 21 74 Melee . | . . . . . . . . . . Projectile 43 | . . . . . . 1 30 . 12 AOE 270 | . . . 32 . . 155 . 21 62 Terrain Rammed . | . . . . . . . . . . Walls Destroyed . | . . . . . . . . . . Machines Disabled . | . . . . . . . . . . Actions | -11 -10 -10 -9 -9 -9 -8 -8 -8 -8 --------- Run | Yrd Mat Min Mat Min Exi Min Mat Gar Mat Total 5534 | 50 217 271 1717 185 329 574 301 1554 336 Wait 464 | . . 70 196 . . 46 61 89 2 Move 4356 | 38 183 185 1303 149 321 494 197 1231 255 Hop . | . . . . . . . . . . Pick Up 86 | 6 15 1 28 1 1 1 5 19 9 Fast Attach 3 | . . . 1 . 2 . . . . Attach 50 | 6 4 . 7 2 1 . 2 18 10 Detach . | . . . . . . . . . . Swap 36 | . 4 . 20 . . 5 2 4 1 Drop 53 | . 2 . 19 . 4 1 3 18 6 Fire 408 | . 9 15 141 33 . 27 31 99 53 Melee . | . . . . . . . . . . Ram . | . . . . . . . . . . Kick . | . . . . . . . . . . Crush 4 | . . . 2 . . . . 2 . Escape Stasis 28 | . . . . . . . . 28 . Rewire . | . . . . . . . . . . Trap 2 | . . . . . . . . 2 . Miscellaneous 44 | . . . . . . . . 44 . Route ------- -11/Scrapyard -10/Materials -10/Mines -9/Materials (discovered 4 exits: *Mat x3 / *Min) -9/Mines (discovered 2 exits: *Mat / *Exi) -9/Exiles -8/Mines -8/Materials (discovered 2 exits: [*Fac] / Gar) -8/Garrison (discovered 3 exits: [*Mat x3]) -8/Materials (discovered 1 exit: [*Fac]) History --------- Turn | Location | Event 37 | -11/Scrapyard | Discovered new exit (range 15) 61 | -11/Scrapyard | Entered Materials 301 | -10/Materials | Build established: Mutant 345 | -10/Materials | Discovered new exit (range 9) 407 | -10/Materials | Entered Mines 427 | -10/Mines | Learned Materials terminal intel 489 | -10/Mines | Assisted by bots powering up and referring to "LRC-V3" 493 | -10/Mines | Assembled infested the area 495 | -10/Mines | Learned Materials emergency access door positions 696 | -10/Mines | A weapon hastily lodged in a ceiling crevice suddenly fell to the ground 785 | -10/Mines | Discovered new exit (range 9) 819 | -10/Mines | Entered Materials 819 | -9/Materials | Accompanied by 1 ally 819 | -9/Materials | Evolved 2 slots: Utility x2 821 | -9/Materials | Loaded intel: 12 terminal locations 1302 | -9/Materials | Discovered new exit (range 3) 2141 | -9/Materials | Discovered new exit (range 14) 2486 | -9/Materials | Discovered new exit (range 16) 2585 | -9/Materials | Core integrity fell below 50% 2741 | -9/Materials | Repaired Plasma Flamer 3097 | -9/Materials | Repaired Broken Plasma Flamer 3219 | -9/Materials | First assault squad dispatched 3243 | -9/Materials | Identified exit to Mines 3267 | -9/Materials | System corruption reached 10% 3303 | -9/Materials | Lost 3 parts (1n2u) 3604 | -9/Materials | Entered Mines 3871 | -9/Mines | Found DCF Scrap (15 items) 3961 | -9/Mines | Discovered new exit (range 12) 4011 | -9/Mines | Deemed a non-threat by the Exiles lab entrance 4011 | -9/Mines | Discovered new exit (range 5) 4021 | -9/Mines | Entered Exiles 4074 | -9/Exiles | Met 8R-AWN 4097 | -9/Exiles | Met EX-HEX 4145 | -9/Exiles | Met EX-BIN 4162 | -9/Exiles | Aligned with FarCom system 4164 | -9/Exiles | Given EX-Vault access code 4204 | -9/Exiles | Opened EX-Vault 4217 | -9/Exiles | Found XL Autogun Array 4266 | -9/Exiles | Warned to stay clear of 0b10 Research branches 4605 | -9/Exiles | Met EX-DEC 4689 | -9/Exiles | Discovered new exit (range 12) 4716 | -9/Exiles | Left Exiles lab with XL Autogun Array 4716 | -9/Exiles | Entered Mines 5055 | -8/Mines | Core integrity fell below 20% 6111 | -8/Mines | Discovered new exit (range 10) 6161 | -8/Mines | Entered Materials 6161 | -8/Materials | Evolved 2 slots: Weapon x2 6396 | -8/Materials | Discovered new exit (range 14) 6463 | -8/Materials | Build established: Tank 6755 | -8/Materials | Identified exit to Garrison 6755 | -8/Materials | Entered Garrison 6847 | -8/Garrison | Triggered checkpoint 7123 | -8/Garrison | Triggered checkpoint 7138 | -8/Garrison | Triggered checkpoint 7159 | -8/Garrison | Destroyed 9 combat bots 7179 | -8/Garrison | Lost 3 parts (1p1n1u) 7771 | -8/Garrison | Build established: Skirmisher 7825 | -8/Garrison | Triggered checkpoint 7884 | -8/Garrison | Discovered new exit (range 9) 8036 | -8/Garrison | Discovered new exit (range 12) 8525 | -8/Garrison | Triggered checkpoint 9024 | -8/Garrison | Discovered new exit (range 11) 9069 | -8/Garrison | Triggered checkpoint 9487 | -8/Garrison | Garrison Relay disabled 9574 | -8/Garrison | Build established: Mutant 9607 | -8/Garrison | Garrison Relay disabled 9806 | -8/Garrison | Garrison Relay disabled 9950 | -8/Garrison | Entered Materials 10147 | -8/Materials | Garrison activated, responded to threat 10381 | -8/Materials | Core integrity fell below 50% 10431 | -8/Materials | Build established: Skirmisher 10593 | -8/Materials | Discovered new exit (range 4) 10623 | -8/Materials | Core integrity fell below 20% 10627 | -8/Materials | Destroyed by H-61 Shepherd with Heavy Assault Cannon Last Messages --------------- X-57 Shotgunner destroyed. Acquired 59 matter. K-01 Serf collects debris. Imp. Ion Engine destroyed. Knocked back. K-01 Serf collects debris. XL Autogun Array falls apart. Slug penetrates Earth. Acquired Prototype Ballistic Gun. K-01 Serf collects debris. Identified XL Autogun Subcomponent. K-01 Serf collects debris. XL Autogun Subcomponent destroyed. Penetrated by Slug. Knocked back. Adv. Heat Sink destroyed. K-01 Serf collects debris. A-02 Transporter destroyed. Terminal disabled. Mni. Grenade Launcher destroyed. Map ----- +----------------------------------------------------+ | ?????????????????????????????????????????????? | | ?????????????????????????????????????????????? | | ?????????????????????????????????????????????? | | ?????????????????????????????????????????????? | | ?????????????????????????????????????????????? | | ?????????????????????????????????????????????? | | ?????????????????????????????????????????????? | | ?????????????????????????????????????????????? | | ?????????????????????????????????????????????? | | ?????????????????????????????????????????????? | | ?????????????????????????????????????????????? | | ????????#????????????????????????????????????? | | ????????? # ??? ????????????????????????????? | | ?????????#" ?? ! ??????????????????????????? | | ??????????# ??? ??????????????????????????? | | ??????????? ?? ??????????????????????????? | | ???????????? ?? ??????????????????????????? | | ????????????? ? ??????????????????????????? | | ??????????????#;##+####??????????????????????? | | ??????????????# % % #??????????????????????? | | ??????????#####